lending/lending_fUSD_20250913
["ID","MTS","AMOUNT","RATE_DAILY","PERIOD"]
[385311877,1757763032309,-390.0,0.000291,2]
[385311879,1757763032319,-150.94,0.00029392,2]
[385311881,1757763032328,-219.03,0.00029447,30]
[385311883,1757763032337,-277.35679052,0.0002952,2]
[385311884,1757763032347,-152.0,0.00029528,3]
[385311885,1757763032357,-168.2995405,0.00029538,2]
[385311886,1757763032367,-1039.54118597,0.00029538,2]
[385311887,1757763032380,-975.80935985,0.00029538,2]
[385311888,1757763032391,-477.93930329,0.00029538,2]
[385311889,1757763032403,-1211.03592229,0.00029538,2]
[385311890,1757763032412,-347.0,0.00029727,7]
[385311891,1757763032422,-848.77383982,0.00029836,2]
[385311892,1757763032446,-575.98616018,0.00029836,2]
[385311893,1757763032455,-322.53840157,0.00029838,2]
[385311894,1757763032481,-299.99,0.00029838,2]
[385311895,1757763032492,-521.96802087,0.00029838,2]
[385311896,1757763032501,-196.59923668,0.00029839,2]
[385311897,1757763032511,-160.30143668,0.00029848,2]
[385311898,1757763032520,-2097.6389011,0.00029848,2]
[385311899,1757763032535,-853.99715375,0.00029848,2]
[385311900,1757763032553,-298.27836405,0.00029848,2]
[385311901,1757763032562,-409.3952176,0.00029858,2]
[385311902,1757763032571,-179.5567,0.00029858,2]
[385311903,1757763032580,-2139.12257856,0.00029859,2]
[385311904,1757763032591,-517.90200001,0.00029859,2]
[385311905,1757763032602,-545.31,0.00029859,2]
[385311906,1757763032613,-325.67870469,0.00029859,2]
[385311907,1757763032624,-50.78835664,0.00029859,2]
[385311908,1757763032634,-624.21164336,0.00029869,2]
[385311909,1757763032646,-438.0,0.00029869,2]
[385311910,1757763032672,-362.78835664,0.00029869,2]
[385311911,1757763032681,-283.81,0.00029872,2]
[385311912,1757763032690,-2105.11294907,0.000299,10]
[385311913,1757763032699,-1000.0,0.000299,2]
[385311914,1757763032709,-1425.0,0.00029908,2]
[385311915,1757763032718,-10019.42643651,0.00029937,2]
[385311916,1757763032729,-1098.99573606,0.00029937,2]
[385311927,1757763037616,-542.63715,0.00029838,20]
[385311928,1757763037625,-140.34728556,0.00029927,2]
[385311929,1757763037777,-72.17696256,0.00029927,2]
[385311930,1757763038045,-1251.09497452,0.00029937,2]
[385311932,1757763038063,-1422.41859326,0.00029937,2]
[385311933,1757763038075,-94612.02957837,0.00029937,2]
[385311934,1757763038087,-41224.74638095,0.00029937,2]
[385311935,1757763038098,-808.71829025,0.00029937,2]
[385311936,1757763038110,-496.59,0.00029937,2]
[385311937,1757763038123,-1085.09011866,0.00029937,2]
[385311939,1757763038168,-16703.06996013,0.00029937,2]
[385311940,1757763038179,-1536.32447651,0.00029937,2]
[385311941,1757763038189,-847.7133333,0.00029937,2]
[385311942,1757763038200,-3116.14834175,0.00029937,2]
[385311943,1757763038210,-3150.0,0.00029937,2]
[385311946,1757763038232,-703.20299149,0.00029937,2]
[385311983,1757763039715,-11408.36427347,0.00029937,2]
[385311984,1757763039973,-1365.96682191,0.00029937,2]
[385311998,1757763042735,-807.52063904,0.00029937,2]
[385311999,1757763042746,-7222.99656403,0.00029937,2]
[385312000,1757763042844,-5553.75007416,0.00029937,2]
[385312001,1757763043007,-163.31894757,0.00029937,2]
[385312002,1757763043025,-1601.62162402,0.00029937,2]
[385312021,1757763045610,-16768.60006444,0.00029937,2]
[385312022,1757763045841,-0.09295166,0.00029937,2]
[385312023,1757763045887,-329.30599999,0.00029937,2]
[385312024,1757763045939,-4430.94191996,0.00029937,2]
[385312025,1757763046048,-1373.00081687,0.00029937,2]
[385312026,1757763046060,-1891.19748474,0.00029937,2]
[385312824,1757763096662,1445.15826514,0.000249,2]
[385312825,1757763198143,170.35,0.00028,30]
[385312827,1757763279836,1387.3519344,0.000249,2]
[385312828,1757763339035,151.43,0.00028,30]
[385312829,1757763462719,1331.85785712,0.000249,2]
[385312830,1757763483658,300.0,0.0002881,120]
[385312831,1757763543805,179.89998494,0.00030137,120]
[385312832,1757763648076,1278.58354272,0.000249,2]
[385312834,1757763748524,1000.0,0.0003,120]
[385312835,1757763828410,1227.44020104,0.000249,2]
[385312836,1757764011589,679.56192237,0.000249,2]
[385312837,1757764094744,333.0,0.00030136,120]
[385312839,1757764149222,-498.78067059,0.000249,2]
[385312840,1757764149242,-186.73428947,0.00026191,2]
[385312841,1757764149261,-161.39,0.00026191,2]
[385312842,1757764196349,1131.20888928,0.000249,2]
[385312849,1757764231907,-158.36,0.00027397,2]
[385312850,1757764231917,-377.08240835,0.00027738,2]
[385312851,1757764231926,-150.0,0.00027838,4]
[385312852,1757764231935,-150.0,0.00027838,4]
[385312853,1757764231944,-150.0,0.00027838,4]
[385312854,1757764231953,-242.80935986,0.00027838,4]
[385312855,1757764231962,-411.0,0.00028,2]
[385312856,1757764231971,-200.0,0.00028217,2]
[385312857,1757764231980,-242.15,0.00028229,2]
[385312858,1757764231988,-2823.02405394,0.00028248,2]
[385312859,1757764232000,-2400.18594606,0.00028248,2]
[385312860,1757764232009,-1031.12,0.00028282,2]
[385312861,1757764232019,-200.0,0.00028283,2]
[385312862,1757764232028,-666.0,0.0002832,3]
[385312863,1757764232037,-150.0,0.00028422,7]
[385312864,1757764232046,-241.91,0.00028442,2]
[385312865,1757764232055,-330.67,0.00028494,2]
[385312866,1757764232065,-278.8791257,0.00028505,2]
[385312867,1757764232074,-177.31,0.00028506,2]
[385312868,1757764232085,-435.92,0.00028685,2]
[385312869,1757764232094,-227.91108678,0.00028735,2]
[385312870,1757764232105,-256.97891322,0.00028735,2]
[385312871,1757764232115,-1200.0,0.00028794,2]
[385312872,1757764232124,-300.0,0.00028794,2]
[385312873,1757764232134,-169.17,0.00028795,80]
[385312874,1757764232143,-1533.41327225,0.00028795,2]
[385312875,1757764232157,-410.18768663,0.00028795,2]
[385312876,1757764232268,-2488.02735677,0.00028795,2]
[385312877,1757764232279,-568.37168435,0.00028795,2]
[385312879,1757764232289,-1000.0,0.00028915,2]
[385312880,1757764232298,-277.35679052,0.0002892,2]
[385312881,1757764232308,-250.0,0.00028935,2]
[385312882,1757764232317,-182.85036779,0.00028999,2]
[385312883,1757764232327,-196.58107727,0.00028999,2]
[385312884,1757764232336,-401.94593101,0.00028999,2]
[385312886,1757764232346,-261.19679481,0.00029,5]
[385312888,1757764232355,-1035.0,0.00029,2]
[385312890,1757764232364,-20000.0,0.00029,2]
[385312892,1757764232373,-13913.95566738,0.00029,3]
[385312895,1757764232392,-2569.68207308,0.00029,3]
[385312912,1757764232654,-466.77034477,0.00029,3]
[385312918,1757764237868,-1720.61193751,0.00029,3]
[385312919,1757764238080,-2785.63913308,0.00029,3]
[385312920,1757764238093,-3261.67974628,0.00029,3]
[385312921,1757764238103,-403.0,0.0002918,2]
[385312922,1757764238114,-1221.24,0.00029689,2]
[385312923,1757764238123,-1835.86129639,0.0002976,2]
[385312924,1757764238133,-542.63715,0.00029764,20]
[385312925,1757764238142,-160.30143664,0.00029769,2]
[385312926,1757764238152,-513.58556289,0.00029769,2]
[385312927,1757764238164,-1986.41443711,0.00029769,2]
[385312928,1757764238174,-350.91018654,0.0002977,2]
[385312929,1757764238184,-3695.64023632,0.0002977,2]
[385312931,1757764238193,-1000.0,0.0002978,2]
[385312933,1757764238203,-1000.0,0.000298,2]
[385312935,1757764238212,-721.12765535,0.00029811,2]
[385312937,1757764238221,-153.27157001,0.00029811,2]
[385312939,1757764238231,-162.55633043,0.00029811,2]
[385312940,1757764238240,-371.95838424,0.00029811,2]
[385312945,1757764238269,-128.04161576,0.00029811,2]
[385312946,1757764238278,-500.0,0.00029811,2]
[385312948,1757764238288,-500.0,0.00029811,2]
[385312950,1757764238297,-500.0,0.00029811,2]
[385312952,1757764238307,-322.6107,0.00029811,2]
[385312954,1757764238316,-342.22,0.00029827,2]
[385312955,1757764238326,-342.22,0.00029827,2]
[385312957,1757764238336,-1186.90768424,0.00029829,2]
[385312960,1757764238350,-3813.09231576,0.00029829,2]
[385312962,1757764238360,-534.975215,0.00029829,7]
[385312964,1757764238369,-2362.051684,0.00029829,7]
[385312966,1757764238378,-534.975215,0.00029829,7]
[385312968,1757764238387,-1094.19148062,0.00029829,7]
[385312970,1757764238399,-1267.86020338,0.00029829,7]
[385312972,1757764238408,-534.975215,0.00029829,7]
[385312974,1757764238417,-2362.051684,0.00029829,7]
[385312976,1757764238427,-534.975215,0.00029829,7]
[385312978,1757764238436,-2362.051684,0.00029829,7]
[385312980,1757764238446,-21084.6517,0.00029829,2]
[385312983,1757764238456,-41664.00464017,0.00029837,2]
[385313153,1757764240075,-783.566122,0.00029829,7]
[385313155,1757764240084,-4700.88322846,0.00029837,2]
[385313157,1757764240096,-329.0207687,0.00029837,2]
[385313160,1757764240107,-1994.01324288,0.00029837,2]
[385313168,1757764240180,-355.75524941,0.00029837,2]
[385313481,1757764243748,-338.21309304,0.00029829,7]
[385313482,1757764243759,-445.35302896,0.00029829,7]
[385313483,1757764243769,-783.566122,0.00029829,7]
[385313484,1757764243778,-3778.33344049,0.00029837,2]
[385313487,1757764244083,-5087.67275333,0.00029837,2]
[385313796,1757764385084,243.74330551,0.0003,120]
[385313801,1757764788068,420.84593712,0.00030136,120]
[385313804,1757765201470,-258.747295,0.000249,2]
[385313805,1757765358073,-1147.29044351,0.000249,2]
[385313806,1757765358095,-765.55783649,0.00025148,2]
[385313808,1757765432203,-279.269895,0.00025149,7]
[385313809,1757765432212,-153.253166,0.00025149,7]
[385313810,1757765432223,-151.0,0.00025149,7]
[385313811,1757765432232,-151.0,0.00025149,7]
[385313812,1757765432242,-151.0,0.00025149,7]
[385313813,1757765432251,-1186.44,0.00026,2]
[385313814,1757765432262,-172.0,0.00027,7]
[385313815,1757765432278,-217.0,0.00027,7]
[385313816,1757765432288,-1200.0,0.00027299,2]
[385313817,1757765432298,-1186.44,0.000273,2]
[385313818,1757765432310,-150.44,0.00027397,2]
[385313819,1757765432319,-217.0,0.00027671,14]
[385313820,1757765432329,-329.02,0.00028124,2]
[385313821,1757765432341,-150.0,0.0002818,7]
[385313822,1757765432350,-1428.18,0.0002819,2]
[385313823,1757765432360,-666.0,0.00028224,3]
[385313824,1757765432369,-376.08,0.00028611,2]
[385313825,1757765432379,-469.24,0.00028658,2]
[385313826,1757765432388,-172.0,0.00028767,14]
[385313827,1757765432397,-217.0,0.00028767,14]
[385313828,1757765432406,-277.35679052,0.00028776,2]
[385313829,1757765432416,-161.67,0.00028786,2]
[385313830,1757765432425,-1386.08,0.00028793,2]
[385313831,1757765432434,-1000.0,0.000288,2]
[385313832,1757765432443,-395.0,0.000288,2]
[385313833,1757765432452,-200.0,0.00028831,2]
[385313834,1757765432461,-151.0,0.00028848,7]
[385313835,1757765432471,-151.0,0.00028848,7]
[385313836,1757765432480,-151.0,0.00028848,7]
[385313837,1757765432489,-151.0,0.00029094,7]
[385313838,1757765432498,-151.0,0.00029094,7]
[385313839,1757765432507,-151.0,0.00029094,7]
[385313840,1757765432516,-151.0,0.0002934,7]
[385313842,1757765432524,-152.015429,0.0002934,7]
[385313844,1757765432534,-153.736828,0.0002934,7]
[385313846,1757765432543,-151.0,0.0002934,7]
[385313847,1757765432553,-151.0,0.0002934,7]
[385313849,1757765432561,-666.031204,0.0002934,7]
[385313851,1757765432571,-666.031204,0.0002934,7]
[385313853,1757765432580,-151.0,0.0002934,7]
[385313855,1757765432590,-666.031204,0.0002934,7]
[385313857,1757765432599,-151.0,0.0002934,7]
[385313859,1757765432608,-151.0,0.0002934,7]
[385313862,1757765432617,-666.031204,0.0002934,7]
[385313865,1757765432626,-151.0,0.0002934,7]
[385313868,1757765432635,-151.0,0.0002934,7]
[385313871,1757765432644,-151.0,0.0002934,7]
[385313873,1757765432654,-151.0,0.0002934,7]
[385313875,1757765432663,-151.0,0.0002934,7]
[385313877,1757765432672,-151.0,0.0002934,7]
[385313879,1757765432681,-166.801671,0.0002934,7]
[385313881,1757765432690,-160.0,0.0002934,14]
[385313883,1757765432699,-160.0,0.0002934,14]
[385313885,1757765432708,-160.0,0.0002934,14]
[385313887,1757765432717,-197.210217,0.0002934,14]
[385313889,1757765432726,-151.0,0.0002934,7]
[385313891,1757765432735,-151.0,0.0002934,7]
[385313893,1757765432744,-152.719445,0.0002934,7]
[385313895,1757765432753,-151.0,0.0002934,7]
[385313897,1757765432762,-151.0,0.0002934,7]
[385313899,1757765432771,-151.0,0.0002934,7]
[385313901,1757765432780,-151.0,0.0002934,7]
[385313903,1757765432790,-151.0,0.0002934,7]
[385313905,1757765432799,-151.0,0.0002934,7]
[385313907,1757765432809,-151.0,0.0002934,7]
[385313909,1757765432818,-151.0,0.0002934,7]
[385313911,1757765432827,-151.0,0.0002934,7]
[385313913,1757765432838,-234.300568,0.0002934,7]
[385313915,1757765432847,-234.300568,0.0002934,7]
[385313917,1757765432856,-151.0,0.0002934,7]
[385313919,1757765432865,-151.0,0.0002934,7]
[385313921,1757765432875,-234.300568,0.0002934,7]
[385313923,1757765432883,-234.300568,0.0002934,7]
[385313925,1757765432893,-234.300568,0.0002934,7]
[385313927,1757765432902,-151.0,0.0002934,7]
[385313929,1757765432911,-234.300568,0.0002934,7]
[385313931,1757765432920,-151.0,0.0002934,7]
[385313933,1757765432930,-224.351056,0.0002934,7]
[385313935,1757765432940,-151.0,0.0002934,7]
[385313937,1757765432949,-234.300568,0.0002934,7]
[385313939,1757765432959,-151.0,0.0002934,7]
[385313941,1757765432968,-234.300568,0.0002934,7]
[385313943,1757765432977,-151.0,0.0002934,7]
[385313945,1757765432987,-151.0,0.0002934,7]
[385313947,1757765432997,-224.139606,0.0002934,7]
[385313949,1757765433007,-151.0,0.0002934,7]
[385313951,1757765433016,-151.0,0.0002934,7]
[385313953,1757765433026,-151.0,0.0002934,7]
[385313955,1757765433035,-151.0,0.0002934,7]
[385313957,1757765433045,-151.0,0.0002934,7]
[385313959,1757765433055,-204.740203,0.0002934,7]
[385313961,1757765433065,-151.0,0.0002934,7]
[385313963,1757765433074,-204.740203,0.0002934,7]
[385313965,1757765433084,-151.0,0.0002934,7]
[385313967,1757765433093,-158.909388,0.0002934,7]
[385313969,1757765433103,-204.740203,0.0002934,7]
[385313971,1757765433112,-204.740203,0.0002934,7]
[385313973,1757765433121,-151.17644,0.0002934,7]
[385313975,1757765433131,-151.17644,0.0002934,7]
[385313977,1757765433140,-204.740203,0.0002934,7]
[385313979,1757765433150,-204.740203,0.0002934,7]
[385313981,1757765433159,-151.17644,0.0002934,7]
[385313983,1757765433169,-151.17644,0.0002934,7]
[385313985,1757765433178,-204.740203,0.0002934,7]
[385313987,1757765433188,-204.740203,0.0002934,7]
[385313989,1757765433197,-151.17644,0.0002934,7]
[385313991,1757765433206,-151.17644,0.0002934,7]
[385313993,1757765433216,-151.17644,0.0002934,7]
[385313995,1757765433225,-151.17644,0.0002934,7]
[385313997,1757765433235,-151.0,0.0002934,7]
[385313999,1757765433244,-151.0,0.0002934,7]
[385314001,1757765433254,-151.0,0.0002934,7]
[385314003,1757765433264,-151.0,0.0002934,7]
[385314005,1757765433278,-151.0,0.0002934,7]
[385314007,1757765433287,-219.709787,0.0002934,7]
[385314009,1757765433297,-151.0,0.0002934,7]
[385314011,1757765433307,-151.0,0.0002934,7]
[385314013,1757765433317,-154.085488,0.0002934,7]
[385314015,1757765433327,-151.0,0.0002934,7]
[385314017,1757765433336,-151.0,0.0002934,7]
[385314019,1757765433347,-151.0,0.0002934,7]
[385314021,1757765433356,-151.0,0.0002934,7]
[385314023,1757765433366,-515.60081738,0.0002934,7]
[385314025,1757765433375,-189.186382,0.00029341,7]
[385314027,1757765433385,-151.0,0.00029341,7]
[385314029,1757765433394,-151.0,0.00029341,7]
[385314031,1757765433404,-152.841708,0.00029341,7]
[385314033,1757765433413,-152.893845,0.00029341,7]
[385314035,1757765433422,-151.0,0.00029341,7]
[385314037,1757765433431,-151.0,0.00029341,7]
[385314039,1757765433441,-151.0,0.00029341,7]
[385314041,1757765433449,-151.0,0.00029341,7]
[385314043,1757765433458,-151.0,0.00029341,7]
[385314045,1757765433468,-153.790167,0.00029341,7]
[385314047,1757765433477,-151.0,0.00029341,7]
[385314049,1757765433487,-153.790167,0.00029341,7]
[385314051,1757765433496,-151.0,0.00029341,7]
[385314053,1757765433506,-153.790167,0.00029341,7]
[385314054,1757765433516,-153.790167,0.00029341,7]
[385314055,1757765433525,-151.0,0.00029341,7]
[385314056,1757765433535,-151.0,0.00029341,7]
[385314057,1757765433545,-1889.641347,0.00029341,7]
[385314058,1757765433554,-427.980172,0.00029341,7]
[385314059,1757765433563,-1889.641347,0.00029341,7]
[385314060,1757765433573,-427.980172,0.00029341,7]
[385314061,1757765433583,-166.502045,0.00029341,7]
[385314062,1757765433592,-1889.641347,0.00029341,7]
[385314063,1757765433622,-427.980172,0.00029341,7]
[385314064,1757765433633,-151.0,0.00029341,7]
[385314065,1757765433642,-166.502045,0.00029341,7]
[385314066,1757765433652,-1889.641347,0.00029341,7]
[385314067,1757765433661,-427.980172,0.00029341,7]
[385314068,1757765433671,-151.0,0.00029341,7]
[385314069,1757765433680,-166.502045,0.00029341,7]
[385314071,1757765433689,-151.0,0.00029341,7]
[385314094,1757765433895,-166.502045,0.00029341,7]
[385314096,1757765433905,-151.0,0.00029341,7]
[385314098,1757765433914,-151.0,0.00029341,7]
[385314100,1757765433923,-151.0,0.00029341,7]
[385314102,1757765433932,-151.0,0.00029341,7]
[385314104,1757765433942,-151.0,0.00029341,7]
[385314106,1757765433951,-151.0,0.00029341,7]
[385314108,1757765433960,-151.0,0.00029341,7]
[385314110,1757765433969,-151.0,0.00029341,7]
[385314112,1757765433979,-151.0,0.00029341,7]
[385314114,1757765433988,-151.0,0.00029341,7]
[385314116,1757765433997,-151.0,0.00029341,7]
[385314118,1757765434006,-151.0,0.0002958,7]
[385314120,1757765434016,-151.0,0.0002958,7]
[385314122,1757765434025,-151.0,0.0002958,7]
[385314124,1757765434034,-151.0,0.0002958,7]
[385314126,1757765434045,-151.0,0.0002958,7]
[385314128,1757765434054,-151.0,0.0002958,7]
[385314130,1757765434063,-151.0,0.0002958,7]
[385314132,1757765434072,-197.27631,0.0002958,7]
[385314134,1757765434081,-152.567897,0.0002958,7]
[385314136,1757765434090,-151.0,0.0002958,7]
[385314138,1757765434099,-451.319074,0.0002958,7]
[385314140,1757765434108,-151.0,0.0002958,7]
[385314142,1757765434117,-451.319074,0.0002958,7]
[385314144,1757765434126,-451.319074,0.0002958,7]
[385314146,1757765434135,-451.319074,0.0002958,7]
[385314148,1757765434144,-151.0,0.0002958,7]
[385314150,1757765434155,-151.0,0.0002958,7]
[385314152,1757765434164,-101.13978288,0.0002958,7]
[385314154,1757765434179,-49.86021712,0.0002958,7]
[385314156,1757765434188,-151.0,0.0002958,7]
[385314158,1757765434198,-151.0,0.0002958,7]
[385314160,1757765434207,-151.0,0.0002958,7]
[385314162,1757765434216,-151.0,0.0002958,7]
[385314164,1757765434226,-151.0,0.0002958,7]
[385314166,1757765434235,-151.0,0.0002958,7]
[385314168,1757765434244,-151.0,0.0002958,7]
[385314170,1757765434253,-162.934578,0.0002958,7]
[385314171,1757765434263,-151.0,0.0002958,7]
[385314173,1757765434274,-151.0,0.0002958,7]
[385314175,1757765434283,-151.0,0.0002958,7]
[385314176,1757765434293,-249.35868,0.0002958,7]
[385314177,1757765434302,-151.0,0.0002958,7]
[385314178,1757765434311,-151.0,0.0002958,7]
[385314179,1757765434320,-151.0,0.0002958,7]
[385314180,1757765434330,-2406.554844,0.0002958,7]
[385314181,1757765434340,-2406.554844,0.0002958,7]
[385314182,1757765434349,-454.449489,0.0002958,7]
[385314183,1757765434358,-2406.554844,0.0002958,7]
[385314184,1757765434367,-1046.76,0.0002958,2]
[385314185,1757765434376,-454.449489,0.0002958,7]
[385314186,1757765434386,-2406.554844,0.0002958,7]
[385314187,1757765434395,-454.449489,0.0002958,7]
[385314188,1757765434404,-454.449489,0.0002958,7]
[385314189,1757765434414,-151.0,0.0002958,7]
[385314190,1757765434423,-151.0,0.0002958,7]
[385314191,1757765434432,-187.784066,0.0002958,7]
[385314192,1757765434441,-151.0,0.0002958,7]
[385314193,1757765434450,-156.429343,0.0002958,7]
[385314194,1757765434459,-151.0,0.0002958,7]
[385314195,1757765434468,-151.0,0.0002958,7]
[385314196,1757765434478,-168.0,0.00029585,2]
[385314197,1757765434487,-1680.0,0.00029634,2]
[385314198,1757765434495,-4020.26107464,0.00029652,2]
[385314199,1757765434505,-152.839279,0.00029652,7]
[385314200,1757765434514,-151.0,0.00029652,7]
[385314201,1757765434523,-152.706256,0.00029652,7]
[385314202,1757765434534,-151.0,0.00029652,7]
[385314203,1757765434544,-735.15,0.00029706,2]
[385314204,1757765434553,-735.15,0.00029706,2]
[385314205,1757765434562,-205.33,0.00029706,2]
[385314206,1757765434571,-205.33,0.00029706,2]
[385314207,1757765434580,-205.33,0.00029706,2]
[385314208,1757765434590,-205.33,0.00029706,2]
[385314209,1757765434599,-205.33,0.00029706,2]
[385314210,1757765434608,-177.93529555,0.00029715,2]
[385314211,1757765434617,-200.99796693,0.00029715,2]
[385314212,1757765434627,-152.1925178,0.00029715,2]
[385314213,1757765434636,-500.0,0.00029715,2]
[385314214,1757765434645,-89175.9465332,0.00029716,2]
[385314215,1757765434655,-5000.0,0.00029716,2]
[385314216,1757765434664,-150.0,0.00029716,2]
[385314217,1757765434673,-500.0,0.00029716,2]
[385314218,1757765434682,-150.0,0.00029716,2]
[385314219,1757765434692,-352.92930366,0.00029716,2]
[385314220,1757765434701,-151.0,0.00029716,7]
[385314221,1757765434710,-151.0,0.00029716,7]
[385314222,1757765434719,-151.0,0.00029716,7]
[385314223,1757765434728,-151.0,0.00029716,7]
[385314224,1757765434737,-151.0,0.00029716,7]
[385314225,1757765434746,-151.0,0.00029716,7]
[385314226,1757765434756,-151.0,0.00029716,7]
[385314227,1757765434765,-151.0,0.00029716,7]
[385314228,1757765434775,-151.0,0.00029716,7]
[385314229,1757765434784,-151.0,0.00029716,7]
[385314230,1757765434793,-151.0,0.00029716,7]
[385314231,1757765434803,-256.647341,0.00029716,7]
[385314232,1757765434811,-151.0,0.00029716,7]
[385314233,1757765434821,-151.0,0.00029716,7]
[385314234,1757765434830,-151.0,0.00029716,7]
[385314235,1757765434839,-151.0,0.00029716,7]
[385314236,1757765434848,-151.0,0.00029716,7]
[385314237,1757765434858,-151.0,0.00029716,7]
[385314238,1757765434867,-151.0,0.00029716,7]
[385314239,1757765434876,-151.0,0.00029716,7]
[385314240,1757765434885,-151.0,0.00029716,7]
[385314241,1757765434895,-219.611378,0.00029716,7]
[385314242,1757765434904,-151.0,0.00029716,7]
[385314243,1757765434914,-151.0,0.00029716,7]
[385314244,1757765434922,-151.0,0.00029716,7]
[385314245,1757765434931,-274.362228,0.00029716,7]
[385314246,1757765434941,-2406.554844,0.00029716,7]
[385314247,1757765434950,-2406.554844,0.00029716,7]
[385314248,1757765434959,-2406.554844,0.00029716,7]
[385314249,1757765434968,-2406.554844,0.00029716,7]
[385314250,1757765434977,-2406.554844,0.00029716,7]
[385314251,1757765434986,-2406.554844,0.00029716,7]
[385314252,1757765434996,-2406.554844,0.00029716,7]
[385314253,1757765435005,-2406.554844,0.00029716,7]
[385314254,1757765435014,-454.449489,0.00029716,7]
[385314255,1757765435024,-2406.554844,0.00029716,7]
[385314256,1757765435033,-454.449489,0.00029716,7]
[385314257,1757765435042,-454.449489,0.00029716,7]
[385314258,1757765435052,-2406.554844,0.00029716,7]
[385314259,1757765435061,-454.449489,0.00029716,7]
[385314260,1757765435071,-2406.554844,0.00029716,7]
[385314261,1757765435080,-454.449489,0.00029716,7]
[385314262,1757765435089,-2406.554844,0.00029716,7]
[385314263,1757765435098,-454.449489,0.00029716,7]
[385314264,1757765435107,-454.449489,0.00029716,7]
[385314265,1757765435117,-2406.554844,0.00029716,7]
[385314266,1757765435127,-454.449489,0.00029716,7]
[385314267,1757765435136,-2406.554844,0.00029716,7]
[385314268,1757765435145,-2406.554844,0.00029716,7]
[385314269,1757765435155,-454.449489,0.00029716,7]
[385314270,1757765435164,-2406.554838,0.00029716,7]
[385314271,1757765435174,-454.449489,0.00029716,7]
[385314272,1757765435183,-454.449489,0.00029716,7]
[385314273,1757765435193,-454.449489,0.00029716,7]
[385314274,1757765435202,-454.449489,0.00029716,7]
[385314275,1757765435212,-151.0,0.00029716,7]
[385314276,1757765435222,-454.449489,0.00029716,7]
[385314277,1757765435231,-151.0,0.00029716,7]
[385314278,1757765435241,-454.449489,0.00029716,7]
[385314279,1757765435250,-151.9471,0.00029716,7]
[385314280,1757765435260,-454.449482,0.00029716,7]
[385314281,1757765435270,-151.0,0.00029716,7]
[385314282,1757765435283,-151.0,0.00029716,7]
[385314283,1757765435291,-151.0,0.00029716,7]
[385314284,1757765435301,-151.0,0.00029716,7]
[385314285,1757765435310,-151.0,0.00029716,7]
[385314286,1757765435321,-151.0,0.00029716,7]
[385314287,1757765435330,-151.0,0.00029716,7]
[385314288,1757765435339,-238.154883,0.00029716,7]
[385314289,1757765435349,-151.0,0.00029716,7]
[385314290,1757765435359,-151.0,0.00029716,7]
[385314291,1757765435369,-151.0,0.00029716,7]
[385314292,1757765435378,-151.0,0.00029716,7]
[385314293,1757765435387,-151.0,0.00029716,7]
[385314294,1757765435396,-151.0,0.00029716,7]
[385314295,1757765435405,-2810.66100897,0.00029716,2]
[385314296,1757765435418,-8715.5715481,0.00029716,2]
[385314297,1757765435429,-535.20628337,0.00029716,2]
[385314298,1757765435444,-289.89119031,0.00029716,2]
[385314299,1757765435456,-281.9940252,0.00029716,2]
[385314300,1757765435474,-474.50987965,0.00029716,2]
[385314303,1757765438050,-169.35505189,0.00029579,2]
[385314304,1757765438061,-500.0,0.00029579,2]